bitfinex-derivatives/quotes_ETHF0:USTF0_20250115
["timestamp","ask_amount","ask_price","bid_price","bid_amount"]
[1736933284228,0.3102,3224.8,3224.7,0.78901]
[1736933284431,0.31019,3224.9,3224.8,0.3102]
[1736933284726,0.3102,3224.8,3224.7,0.789]
[1736933284927,0.3102,3224.9,3224.7,0.789]
[1736933285332,0.3102,3224.9,3224.8,0.3102]
[1736933286027,0.3102,3224.9,3224.7,0.789]
[1736933286325,0.3102,3224.9,3224.8,0.3102]
[1736933286831,0.3102,3224.9,3224.7,0.78901]
[1736933287032,3.24702991,3225.1,3224.7,0.4788]
[1736933287232,0.3102,3224.9,3224.7,0.789]
[1736933287731,0.3102,3224.9,3224.7,0.4788]
[1736933287932,3.24702991,3225.1,3224.7,0.4788]
[1736933288125,3.24702991,3225.1,3224.7,0.789]
[1736933288329,0.31019,3224.9,3224.7,0.789]
[1736933288627,0.31021,3224.7,3224.3,3.662]
[1736933288831,0.31024,3224.5,3224.4,0.4638]
[1736933289437,0.31024,3224.5,3224.4,0.77404]
[1736933289641,0.31023,3224.6,3224.4,0.77404]
[1736933289939,4.6524,3224.8,3224.4,0.4638]
[1736933290145,3.2078,3224.8,3224.7,0.31021]
[1736933296744,0.31019,3225.0,3224.8,0.3102]
[1736933297140,0.31019,3225.0,3224.9,0.9458]
[1736933298544,6.62552707,3225.2,3224.9,0.9458]
[1736933298744,3.2078,3225.2,3225.1,0.31017]
[1736933300251,0.491,3225.5,3225.0,0.4597]
[1736933300552,0.80114,3225.5,3225.3,0.31015]
[1736933300943,0.80114,3225.5,3225.4,0.4874]
[1736933301551,0.31014,3225.4,3225.3,40.8]
[1736933302649,2.93140533,3225.5,3224.9,0.4615]
[1736933302848,0.31017,3225.1,3224.9,0.77168]
[1736933303147,0.31017,3225.1,3225.0,0.31018]
[1736933303545,3.51797,3225.2,3225.0,0.31018]
[1736933304154,3.51797,3225.2,3224.9,0.4615]
[1736933304453,3.2078,3225.2,3225.1,0.31017]
[1736933305548,0.80393,3225.6,3225.4,0.31014]
[1736933306951,0.4938,3225.6,3225.5,0.31013]
[1736933307142,3.6715,3225.7,3225.6,0.31012]
[1736933307347,3.2078,3225.7,3225.0,2.92020533]
[1736933307543,3.51791,3225.7,3225.5,0.31012]
[1736933307748,3.2078,3225.7,3225.3,0.31015]
[1736933307945,0.31015,3225.3,3225.1,0.31016]
[1736933308347,0.9659,3225.3,3225.2,0.31016]
[1736933309348,0.4995,3225.6,3224.9,1.6895]
[1736933309554,3.2078,3225.7,3225.1,3.2078]
[1736933309755,3.2078,3225.7,3225.6,0.31012]
[1736933309950,3.2078,3225.7,3225.1,3.2078]
[1736933310150,3.2078,3225.7,3225.6,0.31012]
[1736933310558,3.51791,3225.7,3225.6,0.31012]
[1736933310857,3.2078,3225.7,3225.6,0.31012]
[1736933313757,3.2078,3225.9,3225.2,3.2078]
[1736933314060,3.2078,3225.9,3225.7,0.31011]
[1736933314061,3.5179,3225.9,3225.7,0.31011]
[1736933314254,3.5179,3225.9,3225.3,0.9332]
[1736933314559,3.2078,3225.9,3225.3,0.9332]
[1736933314759,3.5179,3225.9,3225.7,0.31011]
[1736933315163,3.5179,3225.9,3225.8,0.3101]
[1736933315164,3.2078,3225.9,3225.8,0.3101]
[1736933315458,0.31011,3225.8,3225.3,0.9332]
[1736933315660,3.5179,3225.9,3225.8,0.3101]
[1736933315962,3.5179,3225.9,3225.7,0.31011]
[1736933316961,0.31011,3225.8,3225.6,0.31012]
[1736933317155,0.31011,3225.7,3225.4,0.31014]
[1736933317357,3.2078,3225.9,3225.5,0.4573]
[1736933317558,0.31011,3225.8,3225.6,0.31012]
[1736933317764,3.2078,3225.9,3225.5,0.4573]
[1736933318061,0.31011,3225.8,3225.6,0.31012]
[1736933318260,3.2078,3225.9,3225.5,0.4573]
[1736933318460,0.31012,3225.7,3225.5,0.76743]
[1736933318661,0.31012,3225.7,3225.6,0.31012]
[1736933319865,0.31012,3225.7,3225.5,0.76743]
[1736933320059,0.31012,3225.7,3225.6,0.31012]
[1736933320860,0.31011,3225.8,3225.6,0.31012]
[1736933321165,0.31011,3225.7,3225.5,0.76743]
[1736933321466,0.31011,3225.7,3225.6,0.31012]
[1736933321666,0.31011,3225.8,3225.6,0.31012]
[1736933323762,0.31011,3225.8,3225.5,0.4573]
[1736933324461,3.2078,3225.9,3225.8,0.3101]
[1736933324664,3.51789,3225.9,3225.8,0.3101]
[1736933325470,3.2078,3225.9,3225.8,0.3101]
[1736933329175,0.31011,3225.8,3225.4,0.31014]
[1736933329479,0.31011,3225.8,3225.7,0.31011]
[1736933330576,0.31012,3225.7,3225.5,0.31013]
[1736933330874,3.2078,3225.9,3225.4,0.31014]
[1736933331071,3.2078,3225.9,3225.7,0.31011]
[1736933331263,3.2078,3225.9,3225.5,0.31012]
[1736933331264,0.31011,3225.7,3225.5,0.31012]
[1736933331468,0.31014,3225.4,3225.3,0.9678]
[1736933332070,3.51794,3225.4,3225.3,0.4778]
[1736933332270,0.31016,3225.3,3225.1,0.31017]
[1736933332777,0.31016,3225.3,3225.0,5.36513261]
[1736933332778,3.2078,3225.4,3225.2,0.31016]
[1736933333078,0.31015,3225.3,3225.2,0.31016]
[1736933333266,0.31015,3225.3,3225.0,0.5001]
[1736933333476,0.31015,3225.3,3225.1,0.31016]
[1736933333772,0.31015,3225.3,3225.2,0.31016]
[1736933333974,0.31017,3225.2,3225.0,0.81027]
[1736933334374,0.31017,3225.2,3225.1,0.31017]
[1736933335280,0.31017,3225.2,3225.0,0.5001]
[1736933335781,0.31017,3225.2,3225.0,0.81027]
[1736933335983,0.31017,3225.2,3225.1,0.31017]
[1736933336280,3.2078,3225.4,3225.0,0.81027]
[1736933336483,0.31017,3225.2,3225.1,0.31017]
[1736933338379,0.31017,3225.2,3225.0,0.81027]
[1736933338783,0.31017,3225.2,3225.0,0.5001]
[1736933338984,0.31017,3225.2,3225.1,0.31017]
[1736933339184,3.53764401,3225.3,3225.2,0.31016]
[1736933341284,3.84779401,3225.3,3225.2,0.31016]
[1736933341482,0.31017,3225.2,3225.0,0.81027]
[1736933341783,0.31017,3225.1,3225.0,0.81027]
[1736933341983,3.53764401,3225.3,3225.2,0.31016]
[1736933342187,3.2078,3225.4,3225.3,0.31015]
[1736933342784,3.51794,3225.4,3225.3,0.31015]
[1736933342981,3.2078,3225.4,3225.3,0.31015]
[1736933345399,0.4733,3226.2,3225.6,0.77531]
[1736933345592,4.49261827,3226.3,3226.2,0.31007]
[1736933346288,0.4733,3226.6,3226.3,0.31006]
[1736933346487,0.31006,3226.3,3226.0,0.31008]
[1736933346790,0.31007,3226.2,3226.0,0.31008]
[1736933347480,0.31008,3226.1,3225.9,0.76559]
[1736933347684,0.78488,3226.1,3225.9,0.76559]
[1736933349586,0.31008,3226.0,3225.9,0.4555]
[1736933350492,5.70932581,3226.0,3225.5,3.2078]
[1736933350693,0.31011,3225.8,3225.6,0.31012]
[1736933350892,5.70932581,3226.0,3225.5,3.2078]
[1736933351089,0.7813,3225.9,3225.6,0.31012]
[1736933351290,0.31011,3225.8,3225.6,0.31012]
[1736933351595,3.24495526,3225.7,3225.6,0.31012]
[1736933353695,3.55506526,3225.7,3225.6,0.31012]
[1736933354698,3.24495526,3225.7,3225.6,0.31012]
[1736933354999,3.24495526,3225.7,3225.5,3.2078]
[1736933355192,3.24495526,3225.7,3225.4,0.78814]
[1736933355193,0.31013,3225.6,3225.4,0.78814]
[1736933355396,0.80563,3225.6,3225.4,0.78814]
[1736933355794,0.31013,3225.5,3225.3,0.79475]
[1736933356901,0.31014,3225.4,3225.3,0.4846]
[1736933357095,3.83884759,3225.4,3225.2,0.76646]
[1736933357292,0.4689,3225.3,3225.2,0.76646]
[1736933357599,0.77906,3225.3,3225.1,0.31017]
[1736933358099,0.31017,3225.2,3225.0,3.51798]
[1736933358396,0.31017,3225.2,3225.1,0.31017]
[1736933359097,0.31017,3225.2,3225.0,3.51797]
[1736933359298,0.77906,3225.3,3225.1,0.31016]
[1736933360191,0.4689,3225.3,3225.0,3.2078]
[1736933360407,0.31016,3225.2,3225.0,3.51797]
[1736933361298,0.77906,3225.3,3225.1,0.31017]
[1736933361491,0.31016,3225.2,3225.1,0.31017]
[1736933362087,0.31016,3225.2,3225.0,0.31018]
[1736933362496,0.4689,3225.3,3225.1,0.31017]
[1736933362692,0.77906,3225.3,3225.1,0.31017]
[1736933362897,0.4689,3225.3,3224.9,0.4563]
[1736933363099,0.4689,3225.3,3225.2,0.31016]
[1736933363298,0.77905,3225.3,3225.2,0.31016]
[1736933363499,0.4689,3225.3,3225.2,0.31016]
[1736933364395,3.2078,3225.5,3225.2,0.31016]
[1736933364598,3.2078,3225.5,3225.4,0.31014]
[1736933368899,0.31012,3225.7,3225.5,0.31012]
[1736933369098,0.31012,3225.7,3225.6,0.9181]
[1736933369297,3.30743109,3225.6,3224.9,4.86503261]
[1736933369496,0.31016,3225.2,3225.1,0.31017]
[1736933369694,0.31017,3225.1,3225.0,0.9181]
[1736933369894,1.25327,3225.1,3225.0,1.22828]
[1736933370903,0.9431,3225.1,3225.0,1.22828]
[1736933373611,0.9431,3225.1,3225.0,0.31018]
[1736933377610,0.4706,3225.1,3225.0,0.31018]
[1736933380318,0.78077,3225.1,3225.0,0.31018]
[1736933380515,0.4706,3225.1,3225.0,0.31018]
[1736933381516,3.2078,3225.4,3225.3,0.31015]
[1736933382217,16.6563508,3225.4,3224.8,0.9068]
[1736933382407,3.51799,3224.9,3224.8,4.86503261]
[1736933382922,6.95322949,3224.9,3224.8,4.86503261]
[1736933383105,0.79619,3225.0,3224.8,4.86503261]
[1736933383305,0.486,3225.0,3224.8,4.86503261]
[1736933383502,0.486,3225.0,3224.9,0.9368]
[1736933383908,4.1436,3225.3,3224.9,0.9368]
[1736933384109,0.31018,3225.1,3224.9,0.9368]
[1736933387413,0.31018,3225.0,3224.9,0.9368]
[1736933387622,0.31019,3224.9,3224.2,5.17529261]
[1736933387916,3.2078,3224.6,3224.3,0.78375]
[1736933388219,3.2078,3224.6,3224.3,0.4735]
[1736933388412,3.2078,3224.6,3224.3,0.78374]
[1736933388614,3.51803,3224.6,3224.3,0.78374]
[1736933388913,0.31023,3224.5,3224.3,0.4735]
[1736933390922,0.31024,3224.4,3224.3,0.4735]
[1736933391219,0.78713,3224.5,3224.3,0.4735]
[1736933391414,0.31028,3224.1,3223.8,3.2078]
[1736933391613,5.71322697,3224.4,3223.8,3.51809]
[1736933391812,0.31026,3224.2,3223.9,40.8]
[1736933392022,0.4966,3224.1,3223.9,40.8]
[1736933392222,0.31028,3224.0,3223.9,40.8]
[1736933392413,0.79888,3224.0,3223.9,40.8]
[1736933393922,0.31029,3223.9,3223.8,3.2078]
[1736933394423,0.31029,3223.9,3223.6,42.05491]
[1736933396621,3.2078,3223.8,3223.6,40.8]
[1736933396924,3.2078,3223.8,3223.0,4.86503261]
[1736933396925,0.31035,3223.2,3223.1,0.4798]
[1736933397124,0.31036,3223.1,3223.0,5.35603261]
[1736933397420,3.600693,3223.1,3223.0,4.86503261]
[1736933397827,3.600693,3223.1,3223.0,3.63907292]
[1736933398021,3.600693,3223.1,3222.2,0.491]
[1736933398022,3.290333,3223.1,3222.2,0.491]
[1736933398225,0.31044,3222.3,3222.2,0.491]
[1736933398614,3.8868585,3222.3,3222.2,0.491]
[1736933398819,3.5764185,3222.3,3222.2,0.491]
[1736933399222,3.5764185,3222.3,3222.0,0.31047]
[1736933399424,3.5764185,3222.3,3221.9,40.8]
[1736933399925,0.31046,3222.2,3221.9,40.8]
[1736933400122,3.5764185,3222.3,3221.9,40.8]
[1736933400318,3.5764185,3222.3,3222.0,0.31047]
[1736933400514,3.5764185,3222.3,3222.2,0.31045]
[1736933400715,3.2078,3222.4,3222.3,0.31044]
[1736933400921,3.2078,3222.8,3222.5,0.31041]
[1736933401116,3.2078,3222.8,3222.3,2.44040533]
[1736933401117,3.2078,3222.8,3222.7,0.3104]
[1736933401323,0.77562,3224.4,3222.7,3.2078]
[1736933401324,3.2078,3223.2,3222.7,3.2078]
[1736933401524,3.2078,3223.2,3223.1,40.8]
[1736933402621,3.2078,3223.2,3223.1,41.11036]
[1736933403325,3.2078,3223.6,3223.1,40.8]
[1736933403526,3.2078,3223.6,3223.2,0.31034]
[1736933403825,7.05625922,3223.6,3223.3,0.4816]
[1736933404332,0.31033,3223.5,3223.3,0.4816]
[1736933404630,6.74593922,3223.6,3223.1,40.8]
[1736933404830,3.2078,3223.2,3223.1,40.8]
[1736933406529,3.2078,3223.2,3223.1,41.11036]
[1736933407337,3.2078,3223.6,3223.4,0.31033]
[1736933407628,6.77816257,3223.6,3223.4,0.31033]
[1736933407830,0.31035,3223.2,3223.1,40.8]
[1736933408030,3.2078,3223.2,3223.1,41.11036]
[1736933410528,3.2078,3223.6,3223.1,40.8]
[1736933410731,3.2078,3223.6,3223.5,0.31033]
[1736933413334,3.2078,3223.6,3223.5,2.75073533]
[1736933413540,3.2078,3224.0,3223.5,2.44040533]
[1736933413741,3.2078,3224.0,3223.8,0.31029]
[1736933413947,3.2078,3224.0,3223.9,0.475]
[1736933414332,3.51804,3224.4,3224.1,0.31026]
[1736933414535,3.51804,3224.4,3223.9,0.475]
[1736933414838,6.75191981,3224.4,3223.9,0.475]
[1736933415041,3.2078,3224.4,3223.9,3.6828]
[1736933415242,4.6316,3224.8,3224.0,2.44040533]
[1736933415443,0.31021,3224.7,3224.4,0.31023]
[1736933415633,3.71157027,3224.7,3224.4,0.31023]
[1736933416034,0.31021,3224.7,3224.2,41.272]
[1736933416234,0.31021,3224.7,3224.4,0.31023]
[1736933417439,3.2078,3224.8,3224.7,0.31021]
[1736933418442,3.2078,3224.8,3224.7,0.78301]
[1736933419532,3.2078,3224.8,3224.7,0.4728]
[1736933419840,0.31022,3224.6,3224.3,3.2078]
[1736933420043,0.31021,3224.7,3224.4,0.31023]
[1736933420345,3.2078,3224.8,3224.7,0.31021]
[1736933421442,0.31019,3225.0,3224.7,0.31021]
[1736933421837,0.31023,3224.5,3224.3,3.2078]
[1736933422041,2.44040533,3224.8,3224.3,3.2078]
[1736933422443,3.8072999,3224.7,3224.4,0.31023]
[1736933422838,0.31022,3224.6,3224.3,3.51804]
[1736933423033,0.31022,3224.6,3224.4,0.31024]
[1736933423540,0.31022,3224.6,3224.3,3.2078]
[1736933423740,0.3102,3224.8,3224.3,3.51804]
[1736933424038,0.31022,3224.7,3224.4,0.31023]
[1736933424243,0.31021,3224.7,3224.4,0.31023]
[1736933424834,6.71308349,3224.8,3224.3,3.2078]
[1736933425039,0.31025,3224.3,3224.1,0.4831]
[1736933425238,0.31025,3224.3,3224.1,0.79337]
[1736933427047,0.31024,3224.4,3224.1,0.79337]
[1736933427239,0.31025,3224.3,3224.1,0.79337]
[1736933428347,0.31025,3224.3,3224.1,0.4831]
[1736933428547,0.31023,3224.5,3224.2,0.31025]
[1736933428839,0.31024,3224.4,3224.2,0.31025]
[1736933429044,0.31024,3224.4,3224.1,0.4831]
[1736933429045,3.29793607,3224.4,3224.1,0.4831]
[1736933429239,0.31024,3224.4,3224.2,0.31025]
[1736933429445,0.31023,3224.5,3224.3,40.8]
[1736933430647,0.31022,3224.6,3224.3,41.11024]
[1736933430948,0.31023,3224.5,3224.3,41.11025]
[1736933431243,3.51804,3224.4,3224.0,0.31027]
[1736933431449,0.31028,3224.0,3223.8,2.0976]
[1736933431642,0.929,3224.3,3223.7,3.6652]
[1736933431846,0.31029,3223.9,3223.8,40.8]
[1736933432150,3.51809,3223.9,3223.8,40.8]
[1736933432351,0.3103,3223.8,3223.4,1.317]
[1736933432742,0.3103,3223.8,3223.5,41.11032]
[1736933433346,6.60544072,3223.9,3223.5,40.8]
[1736933433551,0.31032,3223.6,3223.4,0.31033]
[1736933433951,3.2078,3223.9,3223.4,41.11033]
[1736933433952,0.31031,3223.7,3223.4,41.11033]
[1736933434250,3.35803498,3223.6,3223.3,0.4707]
[1736933434557,0.31032,3223.6,3223.3,0.78104]
[1736933434848,0.31032,3223.6,3223.4,0.31033]
[1736933435444,1.23791,3223.7,3223.4,0.31033]
[1736933435640,0.9276,3223.7,3223.3,41.2707]
[1736933435851,3.38160499,3223.6,3223.5,0.31032]
[1736933436447,3.38160499,3223.6,3223.4,0.31033]
[1736933437144,3.38160499,3223.6,3223.3,41.2707]
[1736933437342,3.38160499,3223.6,3223.5,0.31032]
[1736933440743,3.38160499,3223.6,3223.4,0.31033]
[1736933441546,3.69192499,3223.6,3223.4,0.31033]
[1736933441848,3.38160499,3223.6,3223.4,0.31033]
[1736933442046,3.38160499,3223.6,3223.3,40.8]
[1736933442241,2.44040533,3223.5,3223.1,3.2078]
[1736933442446,0.31035,3223.3,3223.1,3.2078]
[1736933442649,0.31035,3223.3,3223.1,3.51816]
[1736933442853,9.15408539,3223.2,3222.5,3.2078]
[1736933443044,0.4898,3223.1,3222.5,4.1599]
[1736933443241,0.9441,3223.1,3222.9,0.31038]
[1736933443449,3.50588006,3223.0,3222.6,40.8]
[1736933443654,0.3104,3222.7,3222.6,40.8]
[1736933444043,4.31801722,3222.7,3222.4,0.31043]
[1736933444349,0.31041,3222.6,3222.2,0.31044]
[1736933444545,0.31041,3222.6,3222.3,41.11044]
[1736933444749,3.43465185,3222.5,3222.3,40.8]
[1736933445048,0.31042,3222.5,3222.3,40.8]
[1736933445353,0.31041,3222.6,3222.3,41.11044]
[1736933445948,3.3804025,3222.6,3222.5,0.31042]
[1736933446155,3.2078,3222.8,3222.6,0.31041]
[1736933446452,3.3804025,3222.7,3222.6,0.31041]
[1736933446846,3.3804025,3222.7,3222.5,0.31042]
[1736933447047,3.6908125,3222.7,3222.4,0.31043]
[1736933447455,3.3804025,3222.7,3222.3,40.8]
[1736933447750,3.3804025,3222.7,3222.5,0.31042]
[1736933447950,3.6908025,3222.7,3222.5,0.31042]
[1736933448348,3.3804025,3222.7,3222.5,0.31042]
[1736933448557,3.3804025,3222.7,3222.3,40.8]
[1736933448856,0.31043,3222.4,3222.1,3.98335]
[1736933449151,3.2078,3222.8,3222.2,40.8]
[1736933449354,3.397119,3222.3,3222.2,41.11045]
[1736933449551,0.31043,3222.5,3222.2,41.11045]
[1736933449961,3.52652605,3222.4,3222.2,41.11045]
[1736933450154,3.52652605,3222.4,3222.2,40.8]
[1736933450354,3.52652605,3222.4,3222.3,0.31044]
[1736933450555,3.83692605,3222.7,3222.4,0.31042]
[1736933450762,3.52652605,3222.7,3222.5,0.31042]
[1736933450954,3.5182,3222.8,3222.5,0.31042]
[1736933451149,3.27413768,3222.6,3222.1,3.6729]
[1736933451360,0.31042,3222.6,3222.3,0.31044]
[1736933451662,0.31044,3222.4,3222.1,3.6729]
[1736933452058,3.3013086,3222.3,3222.1,3.98336]
[1736933452662,3.3013086,3222.3,3222.1,3.98335]
[1736933452959,3.3013086,3222.3,3222.2,0.31045]
[1736933454562,3.2078,3222.8,3222.6,0.31041]
[1736933454763,3.51819,3222.8,3222.6,0.31041]
[1736933454959,3.2078,3222.8,3222.6,0.31041]
[1736933455155,3.2078,3222.8,3222.7,0.3104]
[1736933455761,3.2078,3223.2,3223.1,0.31036]
[1736933455958,3.2078,3223.6,3223.4,0.31033]
[1736933456353,3.32828245,3223.5,3223.4,0.31033]
[1736933456567,3.32828245,3223.5,3223.3,0.31034]
[1736933457063,3.32828245,3223.5,3223.4,0.31033]
[1736933457973,3.2078,3223.6,3223.4,0.31033]
[1736933458169,3.51812,3223.6,3223.4,0.31033]
[1736933458367,3.51812,3223.6,3222.9,0.9965]
[1736933458565,0.31033,3223.5,3223.3,0.31034]
[1736933458869,3.2078,3223.6,3223.3,0.31034]
[1736933459061,3.51812,3223.6,3223.4,0.31033]
[1736933459260,3.51812,3223.6,3222.9,0.9965]
[1736933459261,3.51812,3223.6,3223.3,0.31034]
[1736933459464,3.2078,3223.6,3223.5,0.31032]
[1736933460370,3.2078,3223.6,3223.4,0.31033]
[1736933460568,3.2078,3223.6,3223.5,0.79752]
[1736933462868,3.2078,3224.2,3223.5,3.695]
[1736933463068,3.2078,3224.2,3224.1,0.31026]
[1736933463667,3.2078,3224.2,3223.9,0.31028]
[1736933463668,3.51806,3224.2,3223.9,0.31028]
[1736933463868,3.2078,3224.2,3223.6,0.4874]
[1736933464170,3.54726757,3224.1,3223.8,0.31029]
[1736933464368,3.23699757,3224.1,3223.6,0.4874]
[1736933464570,0.31031,3223.7,3223.5,0.4872]
[1736933464773,0.3103,3223.8,3223.5,0.79752]
[1736933464968,3.5473399,3223.6,3223.5,0.4872]
[1736933465274,3.2370199,3223.6,3223.5,0.79752]
[1736933465488,3.5181,3223.8,3223.5,0.79752]
[1736933465974,3.56852699,3223.7,3223.5,0.79752]
[1736933466373,0.31032,3223.6,3223.3,0.31034]
[1736933466574,3.56852699,3223.7,3223.2,0.9604]
[1736933466774,3.87883699,3223.7,3223.4,0.31033]
[1736933467677,3.56852699,3223.7,3223.2,0.9604]
[1736933467869,3.56852699,3223.7,3223.4,0.31033]
[1736933468071,3.56852699,3223.7,3223.3,0.31034]
[1736933468272,0.31032,3223.6,3223.3,0.31034]
[1736933468468,6.00893232,3223.7,3223.2,0.9604]
[1736933468784,3.37725906,3223.5,3223.2,0.9604]
[1736933468977,0.4565,3223.4,3223.2,0.9604]
[1736933469279,0.31031,3223.7,3223.3,0.31034]
[1736933469481,0.76681,3223.7,3223.3,0.31034]
[1736933469680,3.45784699,3223.5,3223.4,0.31033]
[1736933469975,3.45784699,3223.6,3223.4,0.31033]
[1736933470175,0.76681,3223.7,3223.4,0.31033]
[1736933470376,3.26984653,3223.5,3223.3,0.31034]
[1736933470773,0.4565,3223.7,3223.5,0.31032]
[1736933471079,3.57121831,3223.6,3223.5,0.31032]
[1736933471681,3.57121831,3223.6,3223.4,0.31033]
[1736933471881,3.57121831,3223.6,3223.3,40.8]
[1736933472377,3.2078,3223.8,3223.3,43.24040533]
[1736933472579,3.2078,3223.8,3223.7,0.31031]
[1736933472989,3.2078,3224.2,3223.6,0.31032]
[1736933473283,6.58311424,3224.2,3224.0,0.31027]
[1736933473585,6.58311424,3224.2,3224.1,0.4991]
[1736933474279,6.58311424,3224.2,3224.1,0.80937]
[1736933474476,3.2078,3224.2,3224.1,0.80937]
[1736933474982,3.51806,3224.2,3224.1,0.4991]
[1736933475180,5.64820533,3224.2,3223.8,0.4532]
[1736933475476,5.64820533,3224.2,3223.3,2.44040533]
[1736933475477,2.44040533,3223.9,3223.3,0.4966]
[1736933475681,0.31033,3223.4,3223.3,0.4966]
[1736933476273,3.85915934,3223.4,3223.2,0.31035]
[1736933476978,3.54882934,3223.4,3223.3,0.31034]
[1736933477178,3.2078,3223.6,3223.0,2.93700533]
[1736933477382,3.2078,3223.6,3223.5,0.31032]
[1736933477682,0.77552,3224.8,3223.1,0.77592]
[1736933477683,3.2078,3224.0,3223.9,0.31029]
[1736933481180,3.51804,3224.4,3224.1,0.31026]
[1736933481382,3.2078,3224.4,3224.2,1.26345]
[1736933481679,3.59201857,3224.3,3224.2,0.9532]
[1736933481879,3.59201857,3224.3,3224.2,1.26346]
[1736933482274,3.2078,3224.4,3224.2,0.9532]
[1736933482480,3.2078,3224.4,3223.9,40.8]
[1736933482682,3.36003823,3224.3,3223.9,41.2893]
[1736933482986,0.4784,3224.2,3223.7,3.2078]
[1736933483180,0.31028,3224.0,3223.7,3.5181]
[1736933483577,3.94553868,3224.1,3223.7,3.2078]
[1736933483773,3.94553868,3224.1,3223.1,41.2714]
[1736933483774,0.31032,3223.5,3223.1,40.8]
[1736933483976,3.2078,3223.6,3223.2,0.31035]
[1736933484181,0.31035,3223.2,3223.1,40.8]
[1736933484377,4.33629536,3223.5,3223.1,40.8]
[1736933484581,0.31035,3223.3,3223.0,0.31037]
[1736933484987,0.31035,3223.3,3223.1,41.11036]
[1736933485285,4.33629536,3223.5,3223.1,40.8]
[1736933485581,0.31034,3223.4,3223.2,0.31035]
[1736933485979,3.22740503,3223.3,3223.2,0.31035]
[1736933486179,3.22740503,3223.3,3223.1,40.8]
[1736933486579,3.22740503,3223.3,3223.2,0.31035]
[1736933492189,0.31033,3223.5,3223.2,0.31035]
[1736933492893,3.2078,3223.6,3223.1,40.8]
[1736933493103,0.31033,3223.5,3223.2,0.31035]
[1736933493489,3.2078,3223.6,3223.5,0.31032]
[1736933493686,3.2078,3224.1,3223.5,2.44040533]
[1736933493886,3.2078,3224.1,3224.0,0.31028]
[1736933494090,3.6806,3224.5,3223.8,2.44040533]
[1736933494387,0.31026,3224.2,3223.9,0.31028]
[1736933494594,3.2078,3224.1,3223.9,0.31028]
[1736933494789,3.2078,3224.1,3224.0,0.31028]
[1736933495388,3.2078,3224.1,3223.9,0.31028]
[1736933495589,3.2078,3224.1,3224.0,0.31028]
[1736933496198,3.2078,3224.1,3223.6,1.4475]
[1736933496586,3.2078,3224.1,3223.7,0.31031]
[1736933496787,3.2078,3224.1,3223.6,1.4475]
[1736933496983,3.2078,3224.1,3223.7,0.31031]
[1736933497183,3.2078,3224.1,3223.6,1.4475]
[1736933497598,0.31028,3224.0,3223.8,0.3103]
[1736933498594,0.3103,3223.8,3223.6,1.30361]
[1736933498795,0.4938,3223.9,3223.6,0.9933]
[1736933499097,0.80409,3223.9,3223.6,1.30361]
[1736933499291,0.3103,3223.8,3223.6,0.9933]
[1736933499490,0.4938,3223.9,3223.6,1.30361]
[1736933499704,0.80409,3223.9,3223.6,1.30361]
[1736933501093,0.4938,3223.9,3223.7,0.3103]
[1736933501497,0.4938,3223.9,3223.6,1.30361]
[1736933501697,0.80409,3223.9,3223.6,1.30361]
[1736933502296,0.4938,3223.9,3223.6,0.9933]
[1736933502496,0.80409,3223.9,3223.6,0.80521]
[1736933502697,0.4938,3223.9,3223.6,0.4949]
[1736933502898,3.6755159,3223.8,3223.5,1.314]
[1736933503095,3.3652059,3223.8,3223.6,0.31031]
[1736933503596,3.3652059,3223.8,3223.5,1.314]
[1736933503801,3.6755059,3223.8,3223.5,1.314]
[1736933504098,3.3652059,3223.8,3223.5,1.314]
[1736933504299,0.31033,3223.5,3223.3,0.79964]
[1736933505194,3.2078,3223.6,3223.3,0.79964]
[1736933505396,3.51812,3223.6,3223.3,0.79964]
[1736933505896,3.2078,3223.6,3223.3,0.4893]
[1736933506100,5.91687494,3223.5,3222.9,0.31038]
[1736933506310,0.31036,3223.2,3223.0,0.31037]
[1736933506602,3.2078,3223.1,3223.0,40.8]
[1736933506995,3.2078,3223.1,3222.9,0.4756]
[1736933507194,3.2078,3223.1,3223.0,0.31037]
[1736933509204,0.31034,3223.4,3223.2,0.31035]
[1736933509397,3.2078,3223.5,3223.2,0.31035]
[1736933509604,0.31034,3223.4,3223.2,0.31035]
[1736933510204,3.2078,3223.5,3222.9,0.4756]
[1736933510394,0.31035,3223.3,3222.9,0.4756]
[1736933510601,0.31035,3223.3,3223.1,0.31036]
[1736933511102,0.9079,3223.4,3223.0,0.31037]
[1736933511103,0.31036,3223.2,3223.0,0.31037]
[1736933511296,0.4672,3223.2,3223.1,0.31036]
[1736933511701,0.77755,3223.2,3223.0,0.31037]
[1736933511903,0.4672,3223.2,3223.0,0.31037]
[1736933512301,0.4672,3223.2,3222.9,0.4756]
[1736933512497,0.77755,3223.2,3223.0,0.31037]
[1736933512699,0.31035,3223.3,3223.1,0.31036]
[1736933513011,3.78775482,3223.3,3223.1,0.31036]
[1736933513199,3.47740482,3223.3,3222.9,0.4756]
[1736933513400,0.31035,3223.3,3223.1,0.31036]
[1736933513905,0.31035,3223.2,3223.0,0.31037]
[1736933514498,0.31038,3223.0,3222.8,0.31039]
[1736933515106,3.42960908,3223.4,3222.8,0.31039]
[1736933515405,3.42960908,3223.4,3222.9,0.31038]
[1736933515406,0.31037,3223.1,3222.9,0.31038]
[1736933515607,0.31037,3223.1,3222.8,0.31038]
[1736933516502,3.42960908,3223.4,3222.8,0.31038]
[1736933516711,0.31037,3223.1,3222.8,0.31038]
[1736933516909,0.31038,3223.0,3222.8,0.31038]